bitfinex-derivatives/quotes_BNBF0:USTF0_20250116
["timestamp","ask_amount","ask_price","bid_price","bid_amount"]
[1737011910097,1.04723966,713.96,713.46,2.95483227]
[1737011911297,1.04723966,713.97,713.46,2.95483227]
[1737011912496,1.04723966,713.99,713.46,2.95483227]
[1737011914194,1.04723966,714.0,713.46,2.95483227]
[1737011915297,1.04723966,713.99,713.46,2.95483227]
[1737011916297,1.04723966,713.92,713.46,2.95483227]
[1737011918605,0.69596284,714.32,713.46,2.95483227]
[1737011918606,1.04723966,713.84,713.46,2.95483227]
[1737011919203,1.04723966,713.81,713.46,2.95483227]
[1737011922200,1.04723966,713.76,713.46,2.95483227]
[1737011922500,1.04723966,713.76,713.46,1.874]
[1737011923699,1.04723966,713.76,713.46,2.703]
[1737011924404,1.04723966,713.81,713.46,2.703]
[1737011925404,1.04723966,713.8,713.46,2.703]
[1737011927809,1.04723966,713.81,713.46,2.703]
[1737011929011,1.04723966,713.8,713.46,2.703]
[1737011934510,1.04723966,713.73,713.46,2.703]
[1737011936710,2.13811431,714.26,713.46,2.703]
[1737011936711,1.04723966,713.75,713.46,2.703]
[1737011938311,1.04723966,713.76,713.46,2.703]
[1737011940015,1.04723966,713.75,713.46,2.703]
[1737011941114,1.04723966,713.74,713.46,2.703]
[1737011942413,1.04723966,713.73,713.46,2.703]
[1737011943520,1.04723966,713.75,713.46,2.703]
[1737011944716,1.04723966,713.74,713.46,2.703]
[1737011946620,1.04723966,713.72,713.46,2.703]
[1737011947625,1.04723966,713.76,713.46,2.703]
[1737011952927,1.04723966,713.75,713.46,2.703]
[1737011953928,1.04723966,713.74,713.46,2.703]
[1737011955731,1.04723966,713.72,713.46,2.703]
[1737011956634,1.04723966,713.73,713.46,2.703]
[1737011957532,1.04723966,713.68,713.46,2.703]
[1737011958332,1.04723966,714.01,713.46,2.703]
[1737011960834,2.13811431,715.15,713.46,2.703]
[1737011960835,1.04723966,714.0,713.46,2.703]
[1737011961834,1.04723966,714.03,713.46,2.703]
[1737011963834,1.04723966,714.04,713.46,2.703]
[1737011965733,1.04723966,714.06,713.46,2.703]
[1737011967843,1.04723966,714.07,713.46,2.703]
[1737011969343,1.04723966,713.99,713.46,2.703]
[1737011970441,1.04723966,714.03,713.46,2.703]
[1737011972444,1.04723966,713.97,713.46,2.703]
[1737011973347,0.69580312,714.3,713.46,2.703]
[1737011973348,1.04723966,713.98,713.46,2.703]
[1737011976347,1.04723966,713.93,713.46,2.703]
[1737011977548,1.04723966,713.97,713.46,2.703]
[1737011978448,1.04723966,713.94,713.46,2.703]
[1737011980441,1.04723966,713.96,713.46,2.703]
[1737011981145,1.04723966,713.97,713.46,2.703]
[1737011982248,1.04723966,713.96,713.46,2.703]
[1737011983346,1.04723966,713.95,713.46,2.703]
[1737011984749,0.6955886,714.3,713.46,2.703]
[1737011984750,1.04723966,713.94,713.46,2.703]
[1737011985743,1.04723966,713.97,713.46,2.703]
[1737011986850,1.04723966,714.0,713.46,2.703]
[1737011988144,0.27999048,714.31,713.46,2.703]
[1737011988145,1.04723966,713.94,713.46,2.703]
[1737011992556,0.69548513,714.3,713.46,2.703]
[1737011992557,1.04723966,713.93,713.46,2.703]
[1737011993551,1.04723966,714.15,713.46,2.703]
[1737011994654,1.04723966,714.22,713.46,2.703]
[1737011995959,1.04723966,714.26,713.46,2.703]
[1737011998158,1.32723014,714.31,713.46,2.703]
[1737011999160,0.27999048,714.31,713.46,2.703]
[1737012000461,1.04723966,714.3,713.46,2.703]
[1737012001471,1.04723966,714.29,713.46,2.703]
[1737012002468,1.04723966,714.28,713.46,2.703]
[1737012003762,1.04723966,714.25,713.46,2.703]
[1737012004968,1.04723966,714.24,713.46,2.703]
[1737012007166,1.04723966,714.27,713.46,2.703]
[1737012008370,1.04723966,714.23,713.46,2.703]
[1737012009772,1.04723966,714.24,713.46,2.703]
[1737012011071,1.04723966,714.26,713.46,2.703]
[1737012012272,1.04723966,714.27,713.46,2.703]
[1737012016675,1.04723966,714.29,713.46,2.703]
[1737012017675,1.04723966,714.23,713.46,2.703]
[1737012019579,0.27999048,714.31,713.46,2.703]
[1737012047303,1.04723966,714.34,713.46,2.703]
[1737012048507,1.04723966,714.37,713.46,2.703]
[1737012049406,1.04723966,714.39,713.46,2.703]
[1737012050205,1.04723966,714.37,713.46,2.703]
[1737012051103,1.04723966,714.35,713.46,2.703]
[1737012052410,1.04723966,714.36,713.46,2.703]
[1737012053202,1.04723966,714.34,713.46,2.703]
[1737012054108,1.04723966,714.32,713.46,2.703]
[1737012055709,1.04723966,714.33,713.46,2.703]
[1737012056713,1.04723966,714.32,713.46,2.703]
[1737012057613,1.04723966,714.34,713.46,2.703]
[1737012059513,1.04723966,714.32,713.46,2.703]
[1737012062111,1.04723966,714.29,713.46,2.703]
[1737012066320,1.04723966,714.26,713.46,2.703]
[1737012067022,1.04723966,714.25,713.46,2.703]
[1737012069325,1.04723966,714.23,713.46,2.703]
[1737012070528,1.04723966,714.28,713.46,2.703]
[1737012071827,1.04723966,714.29,713.46,2.703]
[1737012072730,1.04723966,714.33,713.46,2.703]
[1737012073926,1.04723966,714.36,713.46,2.703]
[1737012076131,1.04723966,714.61,713.46,2.703]
[1737012077424,1.04723966,714.53,713.46,2.703]
[1737012079230,1.04723966,714.5,713.46,2.703]
[1737012082234,1.04723966,714.51,713.46,2.703]
[1737012083735,1.04723966,714.52,713.46,2.703]
[1737012085334,1.04723966,714.49,713.46,2.703]
[1737012086535,1.04723966,714.5,713.46,2.703]
[1737012087538,1.04723966,714.49,713.46,2.703]
[1737012088539,1.04723966,714.56,713.46,2.98332405]
[1737012089533,1.04723966,714.56,713.47,0.28032012]
[1737012089740,1.04723966,714.68,713.47,0.28032012]
[1737012090539,1.04723966,714.75,713.47,0.28032012]
[1737012091039,1.04723966,714.75,713.47,3.61732012]
[1737012091638,5.37474652,715.48,713.47,3.61732012]
[1737012091639,1.04723966,714.78,713.47,3.61732012]
[1737012092836,1.04723966,715.15,713.47,3.61732012]
[1737012092837,1.04723966,714.79,713.47,3.61732012]
[1737012093639,1.04723966,714.81,713.47,3.61732012]
[1737012094834,1.04723966,714.83,713.47,3.61732012]
[1737012096339,1.04723966,714.86,713.47,3.61732012]
[1737012099439,1.04723966,714.87,713.47,3.61732012]
[1737012100443,1.04723966,714.85,713.48,0.25737973]
[1737012100638,1.04723966,714.85,713.49,0.28031226]
[1737012101237,1.04723966,714.84,713.49,0.28031226]
[1737012103644,1.04723966,714.82,713.49,0.28031226]
[1737012104650,1.04723966,714.81,713.49,0.28031226]
[1737012105842,1.04723966,714.82,713.49,0.28031226]
[1737012107844,1.04723966,714.81,713.49,0.28031226]
[1737012108048,1.04723966,714.81,713.49,1.08231226]
[1737012108953,1.04723966,714.78,713.49,1.08231226]
[1737012110051,1.04723966,714.77,713.49,1.08231226]
[1737012110953,1.04723966,714.76,713.49,0.802]
[1737012111153,1.04723966,714.76,713.49,1.881]
[1737012111853,1.04723966,714.75,713.49,1.881]
[1737012112448,1.04723966,714.74,713.49,1.881]
[1737012113757,1.04723966,714.73,713.49,1.881]
[1737012114453,1.04723966,714.79,713.49,1.881]
[1737012115458,1.04723966,714.78,713.49,1.881]
[1737012116252,1.04723966,714.78,713.49,2.837]
[1737012116457,1.04723966,714.77,713.49,2.837]
[1737012117759,2.13811431,715.61,713.49,2.837]
[1737012117760,1.04723966,714.75,713.49,2.837]
[1737012118661,1.04723966,714.95,713.49,2.837]
[1737012119761,1.04723966,714.92,713.49,2.837]
[1737012120763,1.04723966,714.91,713.49,2.837]
[1737012121961,1.04723966,714.89,713.49,2.837]
[1737012123054,1.04723966,714.79,713.49,2.837]
[1737012125562,1.04723966,714.72,713.49,3.87667243]
[1737012126465,1.04723966,714.69,713.51,1.03967243]
[1737012127267,1.04723966,714.69,713.52,0.25736779]
[1737012128563,1.04723966,714.69,713.49,1.758]
[1737012128564,1.04723966,714.6,713.62,1.03967243]
[1737012129364,1.04723966,714.6,713.62,1.84667243]
[1737012130066,1.04723966,714.68,713.62,0.807]
[1737012131370,1.04723966,714.72,713.62,2.112]
[1737012132971,1.04723966,714.71,713.62,2.112]
[1737012134069,1.04723966,714.72,713.62,2.112]
[1737012134474,1.04723966,714.72,713.62,3.195]
[1737012139578,1.04723966,714.74,713.62,3.195]
[1737012140380,1.04723966,715.01,713.62,3.195]
[1737012141274,1.04723966,715.02,713.62,3.195]
[1737012142678,1.04723966,715.01,713.62,3.195]
[1737012143280,1.04723966,715.02,713.62,3.195]
[1737012144273,1.04723966,715.03,713.62,3.195]
[1737012147076,1.04723966,715.02,713.62,3.195]
[1737012148483,1.04723966,715.0,713.62,3.195]
[1737012149584,1.04723966,714.99,713.62,3.195]
[1737012150594,1.04723966,714.82,713.62,3.195]
[1737012151579,1.04723966,714.81,713.62,3.195]
[1737012152588,2.13811431,715.83,713.62,3.195]
[1737012152589,1.04723966,714.79,713.62,3.195]
[1737012153789,1.04723966,714.7,713.62,3.195]
[1737012154685,1.04723966,714.83,713.62,3.195]
[1737012154886,1.32702646,714.83,713.62,3.195]
[1737012155489,0.2797868,714.83,713.62,3.195]
[1737012160696,1.04723966,714.7,713.62,3.195]
[1737012161995,1.04723966,714.71,713.62,3.195]
[1737012164092,1.04723966,714.66,713.62,3.195]
[1737012165398,1.04723966,714.67,713.62,3.195]
[1737012167000,0.2797868,714.83,713.62,3.195]
[1737012167001,1.04723966,714.65,713.62,3.195]
[1737012168194,1.04723966,714.66,713.62,3.195]
[1737012169294,1.04723966,714.65,713.62,3.195]
[1737012171394,1.04723966,714.59,713.62,3.195]
[1737012173596,0.2797868,714.83,713.62,3.195]
[1737012173597,1.04723966,714.58,713.62,3.195]
[1737012174700,1.04723966,714.67,713.62,3.195]
[1737012175403,0.2797868,714.83,713.62,3.195]
[1737012186406,1.04723966,714.63,713.62,3.195]
[1737012187603,1.04723966,714.53,713.62,3.195]
[1737012189910,1.04723966,714.54,713.62,3.195]
[1737012191008,1.04723966,714.67,713.62,3.195]
[1737012191213,0.27985335,714.66,713.62,3.195]
[1737012195211,1.04723966,714.65,713.62,3.195]
[1737012196412,0.27985335,714.66,713.62,3.195]
[1737012199710,1.04723966,714.54,713.62,3.195]
[1737012201113,0.27985335,714.66,713.62,3.195]
[1737012201114,1.04723966,714.61,713.62,3.195]
[1737012202214,1.04723966,714.62,713.62,3.195]
[1737012203207,1.04723966,714.63,713.62,3.195]
[1737012204117,1.04723966,714.6,713.62,3.195]
[1737012205015,1.04723966,714.59,713.62,3.195]
[1737012206413,1.04723966,714.61,713.62,3.195]
[1737012207616,1.04723966,714.63,713.62,3.195]
[1737012208520,1.04723966,714.61,713.62,3.195]
[1737012209219,1.04723966,714.6,713.62,3.195]
[1737012211716,1.04723966,714.58,713.62,3.195]
[1737012212424,1.04723966,714.55,713.62,3.195]
[1737012213526,1.04723966,714.52,713.62,3.195]
[1737012214819,1.04723966,714.51,713.62,3.195]
[1737012215924,1.04723966,714.59,713.62,3.195]
[1737012217023,1.04723966,714.62,713.62,3.195]
[1737012217825,1.04723966,714.58,713.62,3.195]
[1737012218830,1.04723966,714.57,713.62,3.195]
[1737012219730,1.04723966,714.55,713.62,3.195]
[1737012221032,1.04723966,714.54,713.62,3.195]
[1737012222224,1.04723966,714.52,713.62,3.195]
[1737012224625,1.04723966,714.54,713.62,3.195]
[1737012225632,0.27985335,714.66,713.62,3.195]
[1737012225633,1.04723966,714.49,713.62,3.195]
[1737012226634,0.27985335,714.66,713.62,3.195]
[1737012226635,1.04723966,714.44,713.62,3.195]
[1737012227831,1.04723966,714.42,713.62,3.195]
[1737012228929,1.04723966,714.41,713.62,3.195]
[1737012230136,1.04723966,714.39,713.62,3.195]
[1737012233347,1.04723966,714.4,713.62,3.195]
[1737012234444,1.04723966,714.44,713.62,3.195]
[1737012235443,1.04723966,714.43,713.62,3.195]
[1737012237939,1.04723966,714.49,713.62,3.195]
[1737012238846,1.04723966,714.48,713.62,3.195]
[1737012239847,1.04723966,714.52,713.62,3.195]
[1737012241944,0.27985335,714.66,713.62,3.195]
[1737012241945,1.04723966,714.51,713.62,3.195]
[1737012242847,1.04723966,714.52,713.62,3.195]
[1737012244246,1.04723966,714.49,713.62,3.195]
[1737012245143,1.04723966,714.45,713.62,3.195]
[1737012246145,0.27985335,714.66,713.62,3.195]
[1737012246146,1.04723966,714.41,713.62,3.195]
[1737012250947,1.04723966,714.46,713.62,3.195]
[1737012251953,1.04723966,714.49,713.62,3.195]
[1737012253049,1.04723966,714.5,713.62,3.195]
[1737012255254,1.04723966,714.52,713.62,3.195]
[1737012256356,1.04723966,714.51,713.62,3.195]
[1737012257558,1.04723966,714.52,713.62,3.195]
[1737012258451,1.04723966,714.59,713.62,3.195]
[1737012259757,1.04723966,714.57,713.62,3.195]
[1737012261957,1.04723966,714.63,713.62,3.195]
[1737012264052,1.04723966,714.58,713.62,3.195]
[1737012264856,0.2798886,714.57,713.62,3.195]
[1737012266460,1.04723966,714.36,713.62,3.195]
[1737012267455,1.04723966,714.38,713.62,3.195]
[1737012268455,1.04723966,714.39,713.62,3.195]
[1737012268656,1.32719878,714.39,713.62,3.195]
[1737012269959,1.04723966,714.38,713.62,3.195]
[1737012271265,0.27995912,714.39,713.62,3.195]
[1737012272059,1.04723966,714.37,713.62,3.195]
[1737012273460,1.04723966,714.3,713.62,3.195]
[1737012274666,1.04723966,714.28,713.62,3.195]
[1737012275869,1.04723966,714.33,713.62,3.195]
[1737012276265,0.27998656,714.32,713.62,3.195]
[1737012299886,1.04723966,714.26,713.62,3.195]
[1737012300985,1.04723966,714.1,713.62,3.195]
[1737012302185,1.04723966,714.06,713.62,3.195]
[1737012303687,1.04723966,713.99,713.62,3.195]
[1737012304587,1.04723966,714.05,713.62,3.195]
[1737012305493,1.04723966,714.03,713.62,3.195]
[1737012306287,1.04723966,714.02,713.62,3.195]
[1737012307293,1.04723966,714.01,713.62,3.195]
[1737012309993,1.04723966,714.07,713.62,3.195]
[1737012311090,0.27998656,714.32,713.62,3.195]
[1737012311091,1.04723966,714.12,713.62,3.195]
[1737012312094,0.27998656,714.32,713.62,3.195]
[1737012316494,1.32722622,714.32,713.62,3.195]
[1737012317489,0.27998656,714.32,713.62,3.195]
[1737012319594,1.04723966,714.37,713.62,3.195]
[1737012320394,1.04723966,714.46,713.62,3.195]
[1737012321197,1.04723966,714.51,713.62,3.195]
[1737012321997,1.04723966,714.54,713.62,3.195]
[1737012323095,1.04723966,714.59,713.62,3.195]
[1737012324092,1.04723966,714.6,713.62,3.195]
[1737012325198,1.04723966,714.61,713.62,3.195]
[1737012326494,1.04723966,714.62,713.62,3.195]
[1737012327693,1.04723966,714.63,713.62,3.195]
[1737012330803,1.04723966,714.69,713.62,3.195]
[1737012331605,1.04723966,714.7,713.62,3.195]
[1737012331805,1.32707735,714.7,713.62,3.195]
[1737012333816,0.27983769,714.7,713.62,3.195]
[1737012335113,1.04723966,714.69,713.62,3.195]
[1737012338517,1.04723966,714.68,713.62,3.195]
[1737012339216,1.04723966,714.67,713.62,3.195]
[1737012340216,1.04723966,714.65,713.62,3.195]
[1737012341218,0.27986118,714.64,713.62,3.195]
[1737012341412,1.04723966,714.62,713.62,3.195]
[1737012341612,0.27987293,714.61,713.62,3.195]
[1737012342620,1.04723966,714.57,713.62,3.195]
[1737012344020,1.04723966,714.51,713.62,3.195]
[1737012344921,0.27987293,714.61,713.62,3.195]
[1737012344922,1.04723966,714.44,713.62,3.195]
[1737012346419,1.04723966,714.38,713.62,3.195]
[1737012347420,1.04723966,714.27,713.62,3.195]
[1737012348421,1.04723966,714.23,713.62,3.195]
[1737012349521,1.04723966,714.21,713.62,3.195]
[1737012350522,1.04723966,714.17,713.62,3.195]
[1737012351620,1.04723966,714.4,713.62,3.195]
[1737012352626,1.04723966,714.41,713.62,3.195]
[1737012353625,1.04723966,714.44,713.62,3.195]
[1737012354722,1.04723966,714.33,713.62,3.195]
[1737012355927,1.04723966,714.26,713.62,3.195]
[1737012357227,1.04723966,714.3,713.62,3.195]
[1737012361631,1.04723966,714.32,713.62,3.195]
[1737012362634,0.27987293,714.61,713.62,3.195]
[1737012362635,1.04723966,714.3,713.62,3.195]
[1737012363631,1.04723966,714.29,713.62,3.195]
[1737012365029,1.04723966,714.28,713.62,3.195]
[1737012365930,0.27987293,714.61,713.62,3.195]
[1737012370336,1.04723966,714.35,713.62,3.195]
[1737012371436,1.04723966,714.34,713.62,3.195]
[1737012372434,1.04723966,714.32,713.62,3.195]
[1737012374834,1.04723966,714.31,713.62,3.195]
[1737012376039,1.04723966,714.29,713.62,3.195]
[1737012381236,1.04723966,714.27,713.62,3.195]
[1737012383236,1.04723966,714.26,713.62,3.195]
[1737012384140,1.04723966,714.31,713.62,3.195]
[1737012386041,1.04723966,714.3,713.62,3.195]
[1737012387944,1.04723966,714.29,713.62,3.195]
[1737012388646,1.04723966,714.28,713.62,3.195]
[1737012390247,1.04723966,714.25,713.62,3.195]
[1737012391546,1.04723966,714.23,713.62,3.195]
[1737012392449,1.04723966,714.22,713.62,3.195]
[1737012393145,1.04723966,714.24,713.62,3.195]
[1737012394150,1.04723966,714.2,713.62,3.195]
[1737012395142,0.27988077,714.59,713.62,3.195]
[1737012395143,1.04723966,714.24,713.62,3.195]
[1737012396348,1.04723966,714.23,713.62,3.195]
[1737012397247,1.04723966,714.21,713.62,3.195]
[1737012398152,1.04723966,714.2,713.62,3.195]
[1737012399047,1.04723966,714.17,713.62,3.195]
[1737012400152,1.04723966,714.23,713.62,3.195]
[1737012401151,1.04723966,714.22,713.62,3.195]
[1737012403654,1.04723966,714.2,713.62,3.195]
[1737012404353,0.6951288,714.58,713.62,3.195]
[1737012404354,1.04723966,714.21,713.62,3.195]
[1737012405649,1.04723966,714.18,713.62,3.195]
[1737012408557,1.04723966,714.17,713.62,3.195]
[1737012409359,1.04723966,714.21,713.62,3.195]
[1737012410858,1.04723966,714.17,713.62,3.195]
[1737012412953,1.04723966,714.18,713.62,3.195]
[1737012413987,1.04723966,714.15,713.62,3.195]
[1737012415077,1.04723966,714.44,713.62,3.195]
[1737012415078,1.04723966,714.16,713.62,3.195]
[1737012416382,1.04723966,714.17,713.62,3.195]
[1737012417176,0.6951288,714.58,713.62,3.195]
[1737012417177,1.04723966,714.11,713.62,3.195]
[1737012418563,1.04723966,713.99,713.62,3.195]
[1737012419763,1.04723966,714.01,713.62,3.195]
[1737012420656,1.04723966,714.02,713.62,3.195]
[1737012421966,1.04723966,714.07,713.62,3.195]
[1737012423167,1.53656836,714.59,713.62,3.195]
[1737012423168,1.04723966,714.14,713.62,3.195]
[1737012424468,1.04723966,714.24,713.62,3.195]
[1737012427562,1.04723966,714.31,713.62,3.195]
[1737012428868,1.04723966,714.32,713.62,3.195]
[1737012429567,1.04723966,714.3,713.62,3.195]
[1737012430771,1.04723966,714.29,713.62,3.195]
[1737012431767,1.04723966,714.27,713.62,3.195]
[1737012432868,1.04723966,714.26,713.62,3.195]
[1737012433871,1.04723966,714.24,713.62,3.195]
[1737012434973,1.04723966,714.23,713.62,3.195]
[1737012436272,1.04723966,714.17,713.62,3.195]
[1737012437475,1.04723966,714.15,713.62,3.195]
[1737012438871,0.69477552,714.58,713.62,3.195]
[1737012438872,1.04723966,714.16,713.62,3.195]
[1737012439877,1.04723966,714.15,713.62,3.195]
[1737012441079,1.04723966,714.13,713.62,3.195]
[1737012442385,1.04723966,714.1,713.62,3.195]
[1737012443277,1.04723966,714.07,713.62,3.195]
[1737012444382,1.04723966,714.03,713.62,3.195]
[1737012446995,1.04723966,714.02,713.62,3.195]
[1737012447985,1.04723966,713.98,713.62,3.195]
[1737012448986,1.04723966,714.0,713.62,3.195]
[1737012450085,1.04723966,713.99,713.62,3.195]
[1737012452187,1.04723966,714.04,713.62,3.195]
[1737012453491,1.04723966,714.02,713.62,3.195]
[1737012454285,1.04723966,714.01,713.62,3.195]
[1737012456193,1.04723966,714.0,713.62,3.195]
[1737012458187,1.04723966,713.99,713.62,3.195]
[1737012459286,1.04723966,714.0,713.62,3.195]
[1737012460388,1.04723966,713.99,713.62,3.195]
[1737012461795,1.04723966,713.96,713.62,3.195]
[1737012463190,1.04723966,713.98,713.62,3.195]
[1737012463996,1.04723966,713.97,713.62,3.195]
[1737012466124,1.04723966,713.98,713.62,3.195]
[1737012468213,1.04723966,713.99,713.62,3.195]
[1737012469517,1.04723966,713.98,713.62,3.195]
[1737012471108,0.27988077,714.59,713.62,3.195]
[1737012471109,1.04723966,713.97,713.62,3.195]
[1737012473599,1.04723966,713.91,713.62,3.195]
[1737012475602,1.04723966,714.1,713.62,3.195]
[1737012476502,1.04723966,714.11,713.62,3.195]
[1737012478004,1.04723966,714.1,713.62,3.195]
[1737012479105,1.04723966,714.09,713.62,3.195]
[1737012480008,1.04723966,714.1,713.62,3.195]
[1737012482307,1.04723966,714.12,713.62,3.195]
[1737012483407,1.04723966,714.11,713.62,3.195]
[1737012484705,1.04723966,713.98,713.62,3.195]
[1737012486903,1.04723966,713.99,713.62,3.195]
[1737012488008,1.04723966,713.98,713.62,3.195]
[1737012489206,1.04723966,713.97,713.62,3.195]
[1737012490216,1.04723966,714.0,713.62,3.195]
[1737012491614,1.04723966,714.04,713.62,3.195]
[1737012492715,1.04723966,714.02,713.62,3.195]
[1737012493815,1.04723966,714.04,713.62,3.195]
[1737012494516,1.04723966,714.07,713.62,3.195]
[1737012495514,1.04723966,714.08,713.62,3.195]
[1737012499812,1.04723966,714.09,713.62,3.195]
[1737012500819,1.04723966,714.08,713.62,3.195]
[1737012502718,1.04723966,714.31,713.62,3.195]
[1737012502719,1.04723966,714.09,713.62,3.195]
[1737012505619,1.04723966,714.1,713.62,3.195]
[1737012507918,0.69477552,714.58,713.62,3.195]
[1737012507919,1.04723966,714.11,713.62,3.195]
[1737012509320,1.04723966,714.12,713.62,3.195]
[1737012509923,1.04723966,714.18,713.62,3.195]
[1737012510918,1.04723966,714.25,713.62,3.195]
[1737012512427,1.04723966,714.28,713.62,3.195]
[1737012513325,1.04723966,714.29,713.62,3.195]
[1737012516426,1.04723966,714.3,713.62,3.195]
[1737012518326,1.04723966,714.27,713.62,3.195]
[1737012521030,1.04723966,714.31,713.62,3.195]
[1737012523829,1.04723966,714.3,713.62,3.195]
[1737012524829,2.13811431,714.98,713.62,3.195]
[1737012524830,1.04723966,714.28,713.62,3.195]
[1737012527930,2.13811431,714.94,713.62,3.195]
[1737012527931,1.04723966,714.27,713.62,3.195]
[1737012531135,1.04723966,714.19,713.62,3.195]
[1737012532229,1.04723966,714.35,713.62,3.195]
[1737012533234,1.04723966,714.34,713.62,3.195]
[1737012535228,1.04723966,714.36,713.62,3.195]
[1737012536836,1.04723966,714.41,713.62,3.195]
[1737012537737,1.04723966,714.44,713.62,3.195]
[1737012539039,1.04723966,714.38,713.62,3.195]
[1737012539935,1.04723966,714.39,713.62,3.195]
[1737012541038,1.04723966,714.4,713.62,3.195]
[1737012542033,1.04723966,714.38,713.62,3.195]
[1737012542937,1.04723966,714.39,713.62,3.195]
[1737012544241,1.04723966,714.4,713.62,3.195]
[1737012546344,1.04723966,714.39,713.62,3.195]
[1737012547641,2.13811431,715.11,713.62,3.195]
[1737012547642,1.04723966,714.44,713.62,3.195]
[1737012548744,1.04723966,714.45,713.62,3.195]
[1737012549846,2.13811431,715.18,713.62,3.195]
[1737012549847,1.04723966,714.44,713.62,3.195]
[1737012552951,1.04723966,714.43,713.62,3.195]
[1737012553945,1.04723966,714.44,713.62,3.195]
[1737012557155,1.04723966,714.51,713.62,3.195]
[1737012558355,1.04723966,714.5,713.62,3.195]
[1737012561960,1.04723966,714.56,713.62,3.195]
[1737012562959,1.04723966,714.57,713.62,3.195]
[1737012563962,1.04723966,714.56,713.62,3.195]
[1737012565460,1.04723966,714.57,713.62,3.195]
[1737012566364,1.04723966,714.56,713.62,3.195]
[1737012567663,2.13811431,715.48,713.62,3.195]
[1737012567664,1.04723966,714.44,713.62,3.195]
[1737012569762,1.04723966,714.43,713.62,3.195]
[1737012570865,1.04723966,714.46,713.62,3.195]
[1737012571963,1.04723966,714.5,713.62,3.195]
[1737012572970,1.04723966,714.57,713.62,3.195]
[1737012573965,1.04723966,714.58,713.62,3.195]
[1737012575176,1.04723966,714.59,713.62,3.195]
[1737012576269,1.04723966,714.6,713.62,3.195]
[1737012577376,1.04723966,714.56,713.62,3.195]
[1737012580670,1.04723966,714.55,713.62,3.195]
[1737012581778,1.04723966,714.56,713.62,3.195]
[1737012584274,1.04723966,714.58,713.62,3.195]
[1737012585483,1.04723966,714.66,713.62,3.195]
[1737012586983,1.04723966,714.68,713.62,3.195]
[1737012587876,1.04723966,714.69,713.62,3.195]
[1737012589081,1.04723966,714.7,713.62,3.195]
[1737012590085,1.04723966,714.74,713.62,3.195]
[1737012591293,1.04723966,714.75,713.62,3.195]
[1737012595994,1.04723966,714.76,713.62,3.195]
[1737012596995,1.04723966,714.84,713.62,3.195]
[1737012598296,1.04723966,714.81,713.62,3.195]
[1737012599194,1.04723966,714.78,713.62,3.195]
[1737012600797,1.04723966,714.8,713.62,3.195]
[1737012604202,1.04723966,714.78,713.62,3.195]
[1737012607006,2.13811431,715.53,713.62,3.195]
[1737012607007,1.04723966,714.72,713.62,3.195]
[1737012610303,1.04723966,714.7,713.62,3.195]
[1737012611201,1.04723966,714.81,713.62,3.195]
[1737012613108,1.04723966,714.8,713.62,3.195]
[1737012614411,1.04723966,714.92,713.62,3.195]
[1737012615404,1.04723966,714.93,713.62,3.195]
[1737012616645,1.04723966,714.9,713.62,3.195]
[1737012618535,1.04723966,714.91,713.62,3.195]
[1737012619831,1.04723966,714.86,713.62,3.195]
[1737012621337,1.04723966,714.88,713.62,3.195]
[1737012623416,1.04723966,714.78,713.62,3.195]
[1737012625915,1.04723966,714.77,713.62,3.195]
[1737012628021,2.13811431,715.71,713.62,3.195]
[1737012628022,1.04723966,714.72,713.62,3.195]
[1737012629623,1.04723966,714.8,713.62,3.195]
[1737012630918,1.04723966,714.48,713.72,1.03967243]